[Event "Titled Tuesday Blitz August 24 2021"]
[White "Damjanovic, Vladimir"]
[Black "Labussiere, Yago"]
[WhiteFideId "903795"]
[BlackFideId "2186969"]
[WhiteElo "2374"]
[BlackElo "1857"]
[Result "1-0"]
[Round "09"]
[TimeControl "180+1"]
[Date "2021.08.24"]
[WhiteClock "0:00:31"]
[BlackClock "0:00:02"]

1. e4 {[%clk 0:03:00]}  c5 {[%clk 0:02:59]} 2. Nf3 {[%clk 0:03:01]}  d6 {[%clk 0:02:55]} 3. d4 {[%clk 0:03:00]}  cxd4 {[%clk 0:02:55]} 4. Nxd4 {[%clk 0:03:01]}  Nf6 {[%clk 0:02:54]} 5. Nc3 {[%clk 0:03:01]}  Nc6 {[%clk 0:02:51]} 6. Bg5 {[%clk 0:02:59]}  e6 {[%clk 0:02:51]} 7. Qd2 {[%clk 0:02:59]}  Qb6 {[%clk 0:02:50]} 8. Nb3 {[%clk 0:02:58]}  Be7 {[%clk 0:02:48]} 9. O-O-O {[%clk 0:02:57]}  a6 {[%clk 0:02:48]} 10. Be3 {[%clk 0:02:52]}  Qc7 {[%clk 0:02:48]} 11. Be2 {[%clk 0:02:53]}  O-O {[%clk 0:02:47]} 12. g4 {[%clk 0:02:52]}  b5 {[%clk 0:02:47]} 13. g5 {[%clk 0:02:52]}  Nd7 {[%clk 0:02:40]} 14. a3 {[%clk 0:02:52]}  Bb7 {[%clk 0:02:24]} 15. h4 {[%clk 0:02:45]}  Nc5 {[%clk 0:02:06]} 16. Kb1 {[%clk 0:02:37]}  Rfd8 {[%clk 0:01:37]} 17. h5 {[%clk 0:02:35]}  b4 {[%clk 0:01:28]} 18. axb4 {[%clk 0:02:33]}  Nxb4 {[%clk 0:01:28]} 19. g6 {[%clk 0:02:32]}  Nxb3 {[%clk 0:01:17]} 20. gxf7+ {[%clk 0:02:20]}  Kxf7 {[%clk 0:01:16]} 21. cxb3 {[%clk 0:02:19]}  Qa5 {[%clk 0:01:16]} 22. Bd3 {[%clk 0:01:31]}  Rac8 {[%clk 0:00:46]} 23. Na4 {[%clk 0:01:22]}  Rc6 {[%clk 0:00:29]} 24. h6 {[%clk 0:01:14]}  g6 {[%clk 0:00:24]} 25. f4 {[%clk 0:01:08]}  Rdc8 {[%clk 0:00:17]} 26. f5 {[%clk 0:01:08]}  gxf5 {[%clk 0:00:11]} 27. exf5 {[%clk 0:01:09]}  e5 {[%clk 0:00:05]} 28. f6 {[%clk 0:01:09]}  Bxf6 {[%clk 0:00:03]} 29. Rhf1 {[%clk 0:00:57]}  e4 {[%clk 0:00:01]} 30. Rxf6+ {[%clk 0:00:52]}  Kxf6 {[%clk 0:00:01]} 31. Qf2+ {[%clk 0:00:53]}  Ke7 {[%clk 0:00:01]} 32. Rf1 {[%clk 0:00:41]}  Kd7 {[%clk 0:00:02]} 33. Qf7+ {[%clk 0:00:41]}  Kd8 {[%clk 0:00:02]} 34. Rf5 {[%clk 0:00:31]} 1-0


[Site "https://www.chess.com"]

[Event "Titled Tuesday Blitz August 24 2021"]
[White "Demchenko, Anton"]
[Black "Murzin, Volodar"]
[WhiteFideId "4160258"]
[BlackFideId "44155573"]
[WhiteElo "2583"]
[BlackElo "2541"]
[Result "1/2-1/2"]
[Round "09"]
[TimeControl "180+1"]
[Date "2021.08.24"]
[WhiteClock "0:00:05"]
[BlackClock "0:00:02"]

1. e4 {[%clk 0:02:59]}  c6 {[%clk 0:02:59]} 2. d4 {[%clk 0:02:58]}  d5 {[%clk 0:03:00]} 3. e5 {[%clk 0:02:59]}  Bf5 {[%clk 0:03:00]} 4. h4 {[%clk 0:02:58]}  h5 {[%clk 0:03:00]} 5. Bd3 {[%clk 0:02:59]}  Bxd3 {[%clk 0:03:00]} 6. Qxd3 {[%clk 0:03:00]}  Qa5+ {[%clk 0:03:00]} 7. Bd2 {[%clk 0:02:56]}  Qa6 {[%clk 0:03:00]} 8. e6 {[%clk 0:02:56]}  Qxd3 {[%clk 0:02:59]} 9. exf7+ {[%clk 0:02:57]}  Kxf7 {[%clk 0:03:00]} 10. cxd3 {[%clk 0:02:57]}  Nh6 {[%clk 0:02:59]} 11. Nh3 {[%clk 0:02:57]}  Nd7 {[%clk 0:02:49]} 12. Bc3 {[%clk 0:02:57]}  g6 {[%clk 0:02:45]} 13. Nd2 {[%clk 0:02:57]}  Bg7 {[%clk 0:02:44]} 14. Nf3 {[%clk 0:02:57]}  Nf5 {[%clk 0:02:37]} 15. O-O-O {[%clk 0:02:45]}  Bf6 {[%clk 0:02:27]} 16. g3 {[%clk 0:02:42]}  Rhc8 {[%clk 0:02:22]} 17. Kb1 {[%clk 0:02:37]}  c5 {[%clk 0:01:54]} 18. dxc5 {[%clk 0:02:35]}  Bxc3 {[%clk 0:01:50]} 19. bxc3 {[%clk 0:02:36]}  Rxc5 {[%clk 0:01:50]} 20. Rc1 {[%clk 0:02:36]}  Rac8 {[%clk 0:01:48]} 21. Kb2 {[%clk 0:02:25]}  e5 {[%clk 0:01:41]} 22. Rhe1 {[%clk 0:02:19]}  Kf6 {[%clk 0:01:35]} 23. Nhg5 {[%clk 0:02:14]}  R5c6 {[%clk 0:01:11]} 24. c4 {[%clk 0:01:46]}  dxc4 {[%clk 0:00:26]} 25. Rxc4 {[%clk 0:01:41]}  Rxc4 {[%clk 0:00:22]} 26. dxc4 {[%clk 0:01:42]}  Rxc4 {[%clk 0:00:22]} 27. Nd2 {[%clk 0:01:35]}  Rc6 {[%clk 0:00:17]} 28. Nde4+ {[%clk 0:01:15]}  Ke7 {[%clk 0:00:17]} 29. Nc3 {[%clk 0:01:16]}  Nd4 {[%clk 0:00:17]} 30. f4 {[%clk 0:01:05]}  Rb6+ {[%clk 0:00:16]} 31. Kc1 {[%clk 0:01:05]}  Rc6 {[%clk 0:00:13]} 32. Kd2 {[%clk 0:01:06]}  Rc5 {[%clk 0:00:05]} 33. Kd3 {[%clk 0:01:00]}  Nf5 {[%clk 0:00:04]} 34. Nge4 {[%clk 0:00:19]}  Ra5 {[%clk 0:00:04]} 35. a4 {[%clk 0:00:19]}  b6 {[%clk 0:00:04]} 36. Kc4 {[%clk 0:00:19]}  exf4 {[%clk 0:00:03]} 37. gxf4 {[%clk 0:00:17]}  Kd8 {[%clk 0:00:03]} 38. Kb4 {[%clk 0:00:11]}  Nc5 {[%clk 0:00:02]} 39. Rd1+ {[%clk 0:00:10]}  Kc8 {[%clk 0:00:03]} 40. Ng5 {[%clk 0:00:07]}  Na6+ {[%clk 0:00:02]} 41. Kb3 {[%clk 0:00:06]}  Nc5+ {[%clk 0:00:03]} 42. Kb4 {[%clk 0:00:06]}  Ne3 {[%clk 0:00:03]} 43. Rd6 {[%clk 0:00:05]}  Nc2+ {[%clk 0:00:02]} 44. Kc4 {[%clk 0:00:05]}  Ne3+ {[%clk 0:00:02]} 45. Kb4 {[%clk 0:00:05]}  Nc2+ {[%clk 0:00:02]} 46. Kc4 {[%clk 0:00:05]}  Ne3+ {[%clk 0:00:02]} 47. Kb4 {[%clk 0:00:05]} 1/2-1/2


[Site "https://www.chess.com"]

[Event "Titled Tuesday Blitz August 24 2021"]
[White "Wagner, Dinara"]
[Black "Leitao, Rafael"]
[WhiteFideId "24157570"]
[BlackFideId "2101246"]
[WhiteElo "2260"]
[BlackElo "2609"]
[Result "0-1"]
[Round "09"]
[TimeControl "180+1"]
[Date "2021.08.24"]
[WhiteClock "0:00:02"]
[BlackClock "0:00:12"]

1. Nf3 {[%clk 0:03:00]}  Nf6 {[%clk 0:02:59]} 2. g3 {[%clk 0:03:00]}  e6 {[%clk 0:02:57]} 3. c4 {[%clk 0:03:00]}  d5 {[%clk 0:02:58]} 4. Bg2 {[%clk 0:03:00]}  Be7 {[%clk 0:02:58]} 5. d4 {[%clk 0:02:59]}  O-O {[%clk 0:02:58]} 6. O-O {[%clk 0:03:00]}  c6 {[%clk 0:02:55]} 7. Qc2 {[%clk 0:02:57]}  b6 {[%clk 0:02:54]} 8. Nbd2 {[%clk 0:02:55]}  Bb7 {[%clk 0:02:50]} 9. Rd1 {[%clk 0:02:54]}  Na6 {[%clk 0:02:35]} 10. e4 {[%clk 0:02:48]}  Rc8 {[%clk 0:02:32]} 11. e5 {[%clk 0:02:45]}  Nd7 {[%clk 0:02:31]} 12. b3 {[%clk 0:02:33]}  c5 {[%clk 0:02:26]} 13. Bb2 {[%clk 0:02:32]}  cxd4 {[%clk 0:02:21]} 14. Bxd4 {[%clk 0:02:23]}  b5 {[%clk 0:02:12]} 15. Rac1 {[%clk 0:01:47]}  bxc4 {[%clk 0:01:54]} 16. bxc4 {[%clk 0:01:47]}  dxc4 {[%clk 0:01:45]} 17. Ng5 {[%clk 0:01:30]}  Bxg5 {[%clk 0:01:38]} 18. Bxb7 {[%clk 0:01:31]}  Nb4 {[%clk 0:01:23]} 19. Qb1 {[%clk 0:01:01]}  Nd3 {[%clk 0:01:08]} 20. Bxc8 {[%clk 0:01:01]}  Nxc1 {[%clk 0:01:08]} 21. Qxc1 {[%clk 0:01:00]}  Qxc8 {[%clk 0:00:53]} 22. f4 {[%clk 0:00:57]}  Be7 {[%clk 0:00:51]} 23. Qxc4 {[%clk 0:00:57]}  Qb7 {[%clk 0:00:47]} 24. Rb1 {[%clk 0:00:48]}  Nb6 {[%clk 0:00:46]} 25. Qe2 {[%clk 0:00:35]}  Rd8 {[%clk 0:00:44]} 26. Nf3 {[%clk 0:00:22]}  Qd5 {[%clk 0:00:42]} 27. Bf2 {[%clk 0:00:14]}  h6 {[%clk 0:00:40]} 28. Rb5 {[%clk 0:00:08]}  Qc6 {[%clk 0:00:38]} 29. Rb1 {[%clk 0:00:07]}  Qa4 {[%clk 0:00:34]} 30. Rc1 {[%clk 0:00:06]}  Nd5 {[%clk 0:00:34]} 31. Kg2 {[%clk 0:00:04]}  Rb8 {[%clk 0:00:32]} 32. Rc2 {[%clk 0:00:03]}  Qa3 {[%clk 0:00:22]} 33. Rd2 {[%clk 0:00:02]}  Rb1 {[%clk 0:00:20]} 34. f5 {[%clk 0:00:02]}  Qc1 {[%clk 0:00:19]} 35. fxe6 {[%clk 0:00:01]}  fxe6 {[%clk 0:00:19]} 36. Kh3 {[%clk 0:00:01]}  Qf1+ {[%clk 0:00:15]} 37. Qxf1 {[%clk 0:00:01]}  Rxf1 {[%clk 0:00:15]} 38. Kg2 {[%clk 0:00:01]}  Rb1 {[%clk 0:00:14]} 39. Nd4 {[%clk 0:00:02]}  Kf7 {[%clk 0:00:14]} 40. Nc6 {[%clk 0:00:02]}  Bg5 {[%clk 0:00:12]} 41. Rc2 {[%clk 0:00:02]}  Be3 {[%clk 0:00:12]} 0-1


[Site "https://www.chess.com"]

[Event "Titled Tuesday Blitz August 24 2021"]
[White "Drozdowski, Kacper"]
[Black "Firat, Burak"]
[WhiteFideId "1136720"]
[BlackFideId "6305881"]
[WhiteElo "2796"]
[BlackElo "2631"]
[Result "1-0"]
[Round "09"]
[TimeControl "180+1"]
[Date "2021.08.24"]
[WhiteClock "0:00:51"]
[BlackClock "0:00:07"]

1. e4 {[%clk 0:03:00]}  c6 {[%clk 0:02:59]} 2. d4 {[%clk 0:03:00]}  d5 {[%clk 0:02:59]} 3. Nc3 {[%clk 0:03:00]}  dxe4 {[%clk 0:02:59]} 4. Nxe4 {[%clk 0:03:01]}  Nf6 {[%clk 0:03:00]} 5. Nxf6+ {[%clk 0:03:02]}  exf6 {[%clk 0:03:01]} 6. c3 {[%clk 0:03:01]}  Bd6 {[%clk 0:03:01]} 7. Bd3 {[%clk 0:03:01]}  O-O {[%clk 0:03:02]} 8. Qc2 {[%clk 0:03:02]}  Re8+ {[%clk 0:03:02]} 9. Ne2 {[%clk 0:03:02]}  h5 {[%clk 0:03:03]} 10. Bd2 {[%clk 0:02:58]}  Nd7 {[%clk 0:02:59]} 11. O-O-O {[%clk 0:02:56]}  Nf8 {[%clk 0:02:57]} 12. Ng3 {[%clk 0:02:56]}  Qa5 {[%clk 0:02:31]} 13. Kb1 {[%clk 0:02:53]}  Be6 {[%clk 0:02:28]} 14. c4 {[%clk 0:02:51]}  Qd8 {[%clk 0:02:24]} 15. Ne4 {[%clk 0:02:47]}  Rc8 {[%clk 0:02:18]} 16. Rhe1 {[%clk 0:02:43]}  b6 {[%clk 0:02:03]} 17. h3 {[%clk 0:02:37]}  Bb8 {[%clk 0:02:01]} 18. Bc3 {[%clk 0:02:34]}  Ng6 {[%clk 0:02:00]} 19. Nd2 {[%clk 0:02:17]}  Nf4 {[%clk 0:01:55]} 20. Bh7+ {[%clk 0:02:17]}  Kh8 {[%clk 0:01:55]} 21. Be4 {[%clk 0:02:18]}  Qd7 {[%clk 0:01:46]} 22. h4 {[%clk 0:02:14]}  b5 {[%clk 0:01:31]} 23. g3 {[%clk 0:02:06]}  Ng6 {[%clk 0:01:31]} 24. Ka1 {[%clk 0:01:46]}  bxc4 {[%clk 0:01:01]} 25. Nf1 {[%clk 0:01:31]}  Ne7 {[%clk 0:00:53]} 26. Ne3 {[%clk 0:01:30]}  Nd5 {[%clk 0:00:49]} 27. Nxc4 {[%clk 0:01:27]}  Nxc3 {[%clk 0:00:42]} 28. Qxc3 {[%clk 0:01:28]}  f5 {[%clk 0:00:41]} 29. Bf3 {[%clk 0:01:25]}  f4 {[%clk 0:00:26]} 30. Ne5 {[%clk 0:01:16]}  Bxe5 {[%clk 0:00:21]} 31. Rxe5 {[%clk 0:01:17]}  fxg3 {[%clk 0:00:21]} 32. Rxh5+ {[%clk 0:01:16]}  Kg8 {[%clk 0:00:21]} 33. fxg3 {[%clk 0:01:16]}  f6 {[%clk 0:00:17]} 34. Rc5 {[%clk 0:01:15]}  Bd5 {[%clk 0:00:14]} 35. Bh5 {[%clk 0:01:12]}  Re4 {[%clk 0:00:11]} 36. Rc1 {[%clk 0:01:09]}  Rd8 {[%clk 0:00:05]} 37. Bf3 {[%clk 0:01:07]}  Re7 {[%clk 0:00:04]} 38. Bxd5+ {[%clk 0:01:04]}  cxd5 {[%clk 0:00:05]} 39. a3 {[%clk 0:01:05]}  Qg4 {[%clk 0:00:04]} 40. Ka2 {[%clk 0:01:02]}  Re2 {[%clk 0:00:04]} 41. Rc7 {[%clk 0:00:59]}  Kh7 {[%clk 0:00:04]} 42. Qd3+ {[%clk 0:00:58]}  Kh6 {[%clk 0:00:04]} 43. R1c2 {[%clk 0:00:55]}  Rde8 {[%clk 0:00:04]} 44. Rxa7 {[%clk 0:00:53]}  Rxc2 {[%clk 0:00:03]} 45. Qxc2 {[%clk 0:00:53]}  Qxd4 {[%clk 0:00:04]} 46. Qc1+ {[%clk 0:00:53]}  Qe3 {[%clk 0:00:02]} 47. Qxe3+ {[%clk 0:00:52]}  Rxe3 {[%clk 0:00:03]} 48. a4 {[%clk 0:00:53]}  Rxg3 {[%clk 0:00:04]} 49. a5 {[%clk 0:00:53]}  Rg4 {[%clk 0:00:05]} 50. Ka3 {[%clk 0:00:52]}  Rxh4 {[%clk 0:00:05]} 51. a6 {[%clk 0:00:52]}  Rh1 {[%clk 0:00:06]} 52. b4 {[%clk 0:00:51]}  Ra1+ {[%clk 0:00:06]} 53. Kb2 {[%clk 0:00:51]}  g5 {[%clk 0:00:07]} 54. Kxa1 {[%clk 0:00:51]} 1-0


[Site "https://www.chess.com"]

[Event "Titled Tuesday Blitz August 24 2021"]
[White "Eswaran, Ashritha"]
[Black "Grafil, Franz Robert"]
[WhiteFideId "2080788"]
[BlackFideId "5205298"]
[WhiteElo "2458"]
[BlackElo "2211"]
[Result "0-1"]
[Round "09"]
[TimeControl "180+1"]
[Date "2021.08.24"]
[WhiteClock "0:01:33"]
[BlackClock "0:00:19"]

1. e4 {[%clk 0:03:00]}  e6 {[%clk 0:02:59]} 2. d4 {[%clk 0:03:00]}  d5 {[%clk 0:02:59]} 3. Nc3 {[%clk 0:02:59]}  Bb4 {[%clk 0:02:58]} 4. e5 {[%clk 0:02:59]}  c5 {[%clk 0:02:59]} 5. a3 {[%clk 0:02:59]}  Bxc3+ {[%clk 0:02:59]} 6. bxc3 {[%clk 0:03:00]}  Ne7 {[%clk 0:03:00]} 7. Qg4 {[%clk 0:03:00]}  cxd4 {[%clk 0:03:00]} 8. Qxg7 {[%clk 0:03:00]}  Rg8 {[%clk 0:03:01]} 9. Qxh7 {[%clk 0:03:00]}  Qc7 {[%clk 0:03:01]} 10. Ne2 {[%clk 0:03:01]}  dxc3 {[%clk 0:03:01]} 11. f4 {[%clk 0:03:01]}  Nbc6 {[%clk 0:03:00]} 12. Qd3 {[%clk 0:03:01]}  d4 {[%clk 0:03:00]} 13. Nxd4 {[%clk 0:03:01]}  Nxd4 {[%clk 0:02:59]} 14. Qxd4 {[%clk 0:03:02]}  Bd7 {[%clk 0:02:57]} 15. Rg1 {[%clk 0:03:01]}  Nf5 {[%clk 0:02:19]} 16. Qf2 {[%clk 0:03:00]}  Bc6 {[%clk 0:02:16]} 17. Bd3 {[%clk 0:02:58]}  b6 {[%clk 0:01:54]} 18. g4 {[%clk 0:02:58]}  Ne7 {[%clk 0:01:46]} 19. a4 {[%clk 0:02:53]}  O-O-O {[%clk 0:01:27]} 20. a5 {[%clk 0:02:53]}  b5 {[%clk 0:01:25]} 21. a6 {[%clk 0:02:48]}  Nd5 {[%clk 0:01:22]} 22. Be3 {[%clk 0:02:42]}  Nb4 {[%clk 0:01:12]} 23. Bxa7 {[%clk 0:02:17]}  Rxd3 {[%clk 0:01:10]} 24. Bb6 {[%clk 0:02:15]}  Nxc2+ {[%clk 0:00:59]} 25. Kf1 {[%clk 0:01:56]}  Rf3 {[%clk 0:00:53]} 26. Bxc7 {[%clk 0:01:51]}  Nxa1 {[%clk 0:00:30]} 27. Qxf3 {[%clk 0:01:34]}  Bxf3 {[%clk 0:00:29]} 28. Kf2 {[%clk 0:01:34]}  Kxc7 {[%clk 0:00:29]} 29. Rxa1 {[%clk 0:01:33]}  Bxg4 {[%clk 0:00:21]} 30. a7 {[%clk 0:01:31]}  Ra8 {[%clk 0:00:17]} 31. Ke3 {[%clk 0:01:31]}  Bf5 {[%clk 0:00:16]} 32. Kd4 {[%clk 0:01:30]}  c2 {[%clk 0:00:15]} 33. Kc5 {[%clk 0:01:30]}  Kb7 {[%clk 0:00:15]} 34. Kxb5 {[%clk 0:01:27]}  Rxa7 {[%clk 0:00:16]} 35. Rc1 {[%clk 0:01:27]}  Ra2 {[%clk 0:00:14]} 36. h4 {[%clk 0:01:27]}  Rb2+ {[%clk 0:00:13]} 37. Kc4 {[%clk 0:01:27]}  Rb1 {[%clk 0:00:14]} 38. Rxc2 {[%clk 0:01:27]}  Bxc2 {[%clk 0:00:14]} 39. h5 {[%clk 0:01:28]}  Rh1 {[%clk 0:00:14]} 40. Kc3 {[%clk 0:01:29]}  Bf5 {[%clk 0:00:13]} 41. Kd4 {[%clk 0:01:29]}  Rxh5 {[%clk 0:00:14]} 42. Kc5 {[%clk 0:01:30]}  Rh4 {[%clk 0:00:14]} 43. Kd6 {[%clk 0:01:30]}  Rxf4 {[%clk 0:00:14]} 44. Ke7 {[%clk 0:01:31]}  Re4 {[%clk 0:00:14]} 45. Kf6 {[%clk 0:01:32]}  Kc6 {[%clk 0:00:14]} 46. Kxf7 {[%clk 0:01:31]}  Rxe5 {[%clk 0:00:15]} 47. Kf6 {[%clk 0:01:32]}  Kd5 {[%clk 0:00:16]} 48. Ke7 {[%clk 0:01:33]}  Re2 {[%clk 0:00:16]} 49. Kd8 {[%clk 0:01:32]}  Bc2 {[%clk 0:00:16]} 50. Ke7 {[%clk 0:01:32]}  e5 {[%clk 0:00:17]} 51. Kd7 {[%clk 0:01:33]}  e4 {[%clk 0:00:17]} 52. Ke7 {[%clk 0:01:34]}  e3 {[%clk 0:00:18]} 53. Kd7 {[%clk 0:01:34]}  Rg2 {[%clk 0:00:17]} 54. Kc7 {[%clk 0:01:34]}  Rg6 {[%clk 0:00:17]} 55. Kb8 {[%clk 0:01:33]}  e2 {[%clk 0:00:18]} 56. Kc7 {[%clk 0:01:33]}  e1=Q {[%clk 0:00:19]} 57. Kb7 {[%clk 0:01:33]}  Qh4 {[%clk 0:00:19]} 58. Kc7 {[%clk 0:01:33]}  Qh7+ {[%clk 0:00:19]} 0-1


[Site "https://www.chess.com"]

[Event "Titled Tuesday Blitz August 24 2021"]
[White "Farahat, Ali"]
[Black "Krivonosov, Oleg"]
[WhiteFideId "10600507"]
[BlackFideId "11600349"]
[WhiteElo "2453"]
[BlackElo "2698"]
[Result "0-1"]
[Round "09"]
[TimeControl "180+1"]
[Date "2021.08.24"]
[WhiteClock "0:01:42"]
[BlackClock "0:01:17"]

1. e4 {[%clk 0:03:00]}  e5 {[%clk 0:02:59]} 2. Nf3 {[%clk 0:03:01]}  Nc6 {[%clk 0:02:58]} 3. Bb5 {[%clk 0:03:01]}  Nf6 {[%clk 0:02:58]} 4. Nc3 {[%clk 0:02:59]}  Bd6 {[%clk 0:02:56]} 5. O-O {[%clk 0:02:59]}  O-O {[%clk 0:02:55]} 6. d3 {[%clk 0:02:59]}  h6 {[%clk 0:02:54]} 7. a3 {[%clk 0:02:58]}  a6 {[%clk 0:02:53]} 8. Bc4 {[%clk 0:02:58]}  b5 {[%clk 0:02:52]} 9. Ba2 {[%clk 0:02:57]}  Bb7 {[%clk 0:02:52]} 10. Re1 {[%clk 0:02:55]}  Re8 {[%clk 0:02:51]} 11. Ne2 {[%clk 0:02:53]}  Bf8 {[%clk 0:02:45]} 12. Ng3 {[%clk 0:02:53]}  d5 {[%clk 0:02:44]} 13. exd5 {[%clk 0:02:40]}  Nxd5 {[%clk 0:02:44]} 14. d4 {[%clk 0:02:40]}  Nxd4 {[%clk 0:02:22]} 15. Nxd4 {[%clk 0:02:15]}  exd4 {[%clk 0:02:21]} 16. Rxe8 {[%clk 0:02:15]}  Qxe8 {[%clk 0:02:20]} 17. Qxd4 {[%clk 0:02:12]}  c5 {[%clk 0:02:01]} 18. Qg4 {[%clk 0:01:58]}  Qe1+ {[%clk 0:01:49]} 19. Nf1 {[%clk 0:01:57]}  Nf6 {[%clk 0:01:47]} 20. Qg6 {[%clk 0:01:47]}  c4 {[%clk 0:01:33]} 21. Qf5 {[%clk 0:01:46]}  Rd8 {[%clk 0:01:22]} 22. b3 {[%clk 0:01:42]}  Rd1 {[%clk 0:01:17]} 0-1


[Site "https://www.chess.com"]

[Event "Titled Tuesday Blitz August 24 2021"]
[White "Girinath, P.D.S."]
[Black "Perez Rodriguez, Luis Manuel"]
[WhiteFideId "5000572"]
[BlackFideId "3503364"]
[WhiteElo "2333"]
[BlackElo "2429"]
[Result "1/2-1/2"]
[Round "09"]
[TimeControl "180+1"]
[Date "2021.08.24"]
[WhiteClock "0:00:03"]
[BlackClock "0:00:04"]

1. e4 {[%clk 0:03:00]}  e5 {[%clk 0:02:59]} 2. Nf3 {[%clk 0:03:00]}  Nc6 {[%clk 0:03:00]} 3. Bb5 {[%clk 0:03:00]}  a6 {[%clk 0:03:00]} 4. Ba4 {[%clk 0:03:00]}  Nf6 {[%clk 0:03:00]} 5. Bxc6 {[%clk 0:03:00]}  dxc6 {[%clk 0:03:00]} 6. Qe2 {[%clk 0:02:59]}  Qd6 {[%clk 0:02:49]} 7. d3 {[%clk 0:02:55]}  Bg4 {[%clk 0:02:48]} 8. Nbd2 {[%clk 0:02:50]}  Nd7 {[%clk 0:02:46]} 9. h3 {[%clk 0:02:47]}  Bh5 {[%clk 0:02:45]} 10. Nc4 {[%clk 0:02:40]}  Qe6 {[%clk 0:02:44]} 11. Ng5 {[%clk 0:01:20]}  Qxc4 {[%clk 0:01:57]} 12. dxc4 {[%clk 0:01:03]}  Bxe2 {[%clk 0:01:55]} 13. Kxe2 {[%clk 0:01:04]}  Nc5 {[%clk 0:01:31]} 14. Be3 {[%clk 0:00:55]}  h6 {[%clk 0:01:31]} 15. Bxc5 {[%clk 0:00:49]}  hxg5 {[%clk 0:01:30]} 16. Bxf8 {[%clk 0:00:44]}  Kxf8 {[%clk 0:01:31]} 17. Rad1 {[%clk 0:00:43]}  Ke7 {[%clk 0:01:31]} 18. Rd3 {[%clk 0:00:42]}  Rad8 {[%clk 0:01:22]} 19. Rhd1 {[%clk 0:00:41]}  Rxd3 {[%clk 0:01:14]} 20. Rxd3 {[%clk 0:00:41]}  g6 {[%clk 0:01:00]} 21. f3 {[%clk 0:00:34]}  b6 {[%clk 0:00:56]} 22. b4 {[%clk 0:00:32]}  Ke6 {[%clk 0:00:53]} 23. Ra3 {[%clk 0:00:23]}  Ra8 {[%clk 0:00:51]} 24. Rd3 {[%clk 0:00:22]}  a5 {[%clk 0:00:47]} 25. b5 {[%clk 0:00:21]}  c5 {[%clk 0:00:40]} 26. a4 {[%clk 0:00:20]}  f5 {[%clk 0:00:37]} 27. Rd5 {[%clk 0:00:17]}  Rh8 {[%clk 0:00:34]} 28. Ke3 {[%clk 0:00:09]}  Re8 {[%clk 0:00:27]} 29. Rd3 {[%clk 0:00:08]}  Rc8 {[%clk 0:00:26]} 30. Rd5 {[%clk 0:00:08]}  Re8 {[%clk 0:00:19]} 31. Rd3 {[%clk 0:00:08]}  Rc8 {[%clk 0:00:18]} 32. Rd5 {[%clk 0:00:08]}  c6 {[%clk 0:00:19]} 33. bxc6 {[%clk 0:00:06]}  Rxc6 {[%clk 0:00:20]} 34. Rd3 {[%clk 0:00:06]}  Rc7 {[%clk 0:00:16]} 35. Rd5 {[%clk 0:00:03]}  Rh7 {[%clk 0:00:13]} 36. Ke2 {[%clk 0:00:01]}  g4 {[%clk 0:00:13]} 37. Ke3 {[%clk 0:00:02]}  gxh3 {[%clk 0:00:12]} 38. gxh3 {[%clk 0:00:02]}  Rxh3 {[%clk 0:00:13]} 39. Rd8 {[%clk 0:00:03]}  Rh2 {[%clk 0:00:11]} 40. Rb8 {[%clk 0:00:03]}  Rxc2 {[%clk 0:00:10]} 41. Rxb6+ {[%clk 0:00:04]}  Kf7 {[%clk 0:00:10]} 42. Ra6 {[%clk 0:00:02]}  Rxc4 {[%clk 0:00:10]} 43. Rxa5 {[%clk 0:00:03]}  Ke6 {[%clk 0:00:09]} 44. Ra6+ {[%clk 0:00:03]}  Kf7 {[%clk 0:00:10]} 45. a5 {[%clk 0:00:02]}  Ra4 {[%clk 0:00:09]} 46. Kd3 {[%clk 0:00:01]}  c4+ {[%clk 0:00:09]} 47. Kc3 {[%clk 0:00:02]}  Ra3+ {[%clk 0:00:08]} 48. Kxc4 {[%clk 0:00:02]}  Rxf3 {[%clk 0:00:09]} 49. Kd5 {[%clk 0:00:02]}  Rd3+ {[%clk 0:00:06]} 50. Kxe5 {[%clk 0:00:02]}  Re3 {[%clk 0:00:06]} 51. Ra7+ {[%clk 0:00:02]}  Ke8 {[%clk 0:00:07]} 52. Kf6 {[%clk 0:00:02]}  Rxe4 {[%clk 0:00:07]} 53. a6 {[%clk 0:00:02]}  f4 {[%clk 0:00:08]} 54. Kxg6 {[%clk 0:00:02]}  f3 {[%clk 0:00:07]} 55. Ra8+ {[%clk 0:00:02]}  Kd7 {[%clk 0:00:07]} 56. Ra7+ {[%clk 0:00:03]}  Kc6 {[%clk 0:00:06]} 57. Rf7 {[%clk 0:00:02]}  Re6+ {[%clk 0:00:06]} 58. Kg5 {[%clk 0:00:02]}  Re8 {[%clk 0:00:06]} 59. Rxf3 {[%clk 0:00:02]}  Ra8 {[%clk 0:00:07]} 60. Rf6+ {[%clk 0:00:02]}  Kb5 {[%clk 0:00:06]} 61. Kg6 {[%clk 0:00:03]}  Rxa6 {[%clk 0:00:05]} 62. Rxa6 {[%clk 0:00:03]}  Kxa6 {[%clk 0:00:04]} 1/2-1/2


[Site "https://www.chess.com"]

[Event "Titled Tuesday Blitz August 24 2021"]
[White "Golubev, Mikhail"]
[Black "Lauridsen, Jesper Morch"]
[WhiteFideId "14100983"]
[BlackFideId "1401890"]
[WhiteElo "2374"]
[BlackElo "2280"]
[Result "1-0"]
[Round "09"]
[TimeControl "180+1"]
[Date "2021.08.24"]
[WhiteClock "0:00:16"]
[BlackClock "0:00:02"]

1. e4 {[%clk 0:03:00]}  c5 {[%clk 0:03:00]} 2. Nf3 {[%clk 0:03:00]}  d6 {[%clk 0:03:00]} 3. d4 {[%clk 0:03:00]}  cxd4 {[%clk 0:03:00]} 4. Nxd4 {[%clk 0:03:01]}  Nf6 {[%clk 0:03:01]} 5. Nc3 {[%clk 0:03:01]}  g6 {[%clk 0:03:01]} 6. Be3 {[%clk 0:03:00]}  Bg7 {[%clk 0:03:02]} 7. f3 {[%clk 0:03:00]}  O-O {[%clk 0:03:02]} 8. Qd2 {[%clk 0:03:01]}  Nc6 {[%clk 0:03:02]} 9. O-O-O {[%clk 0:03:01]}  Bd7 {[%clk 0:02:57]} 10. g4 {[%clk 0:02:58]}  Rc8 {[%clk 0:02:51]} 11. h4 {[%clk 0:02:57]}  Qa5 {[%clk 0:02:47]} 12. Nb3 {[%clk 0:02:45]}  Qc7 {[%clk 0:02:46]} 13. h5 {[%clk 0:02:38]}  Ne5 {[%clk 0:02:41]} 14. Be2 {[%clk 0:02:38]}  a5 {[%clk 0:02:20]} 15. a4 {[%clk 0:02:25]}  b5 {[%clk 0:02:21]} 16. hxg6 {[%clk 0:01:28]}  bxa4 {[%clk 0:01:45]} 17. g5 {[%clk 0:01:28]}  Nxe4 {[%clk 0:01:21]} 18. Nd5 {[%clk 0:01:06]}  Qd8 {[%clk 0:00:29]} 19. fxe4 {[%clk 0:01:05]}  axb3 {[%clk 0:00:29]} 20. gxf7+ {[%clk 0:00:57]}  Rxf7 {[%clk 0:00:26]} 21. c3 {[%clk 0:00:57]}  Be6 {[%clk 0:00:20]} 22. Bh5 {[%clk 0:00:36]}  Qd7 {[%clk 0:00:18]} 23. Bxf7+ {[%clk 0:00:33]}  Bxf7 {[%clk 0:00:18]} 24. Nb6 {[%clk 0:00:31]}  Qc6 {[%clk 0:00:16]} 25. Nxc8 {[%clk 0:00:30]}  Qxc8 {[%clk 0:00:14]} 26. Qh2 {[%clk 0:00:28]}  Bg6 {[%clk 0:00:13]} 27. Rd4 {[%clk 0:00:24]}  Qc6 {[%clk 0:00:11]} 28. Rf1 {[%clk 0:00:21]}  a4 {[%clk 0:00:11]} 29. Qh3 {[%clk 0:00:20]}  a3 {[%clk 0:00:09]} 30. Qe6+ {[%clk 0:00:18]}  Bf7 {[%clk 0:00:09]} 31. Rxf7 {[%clk 0:00:19]}  Nxf7 {[%clk 0:00:09]} 32. Qxb3 {[%clk 0:00:18]}  axb2+ {[%clk 0:00:06]} 33. Kxb2 {[%clk 0:00:18]}  Bxd4 {[%clk 0:00:06]} 34. Bxd4 {[%clk 0:00:18]}  Qd7 {[%clk 0:00:03]} 35. Qd5 {[%clk 0:00:17]}  e6 {[%clk 0:00:03]} 36. Qa8+ {[%clk 0:00:17]}  Nd8 {[%clk 0:00:02]} 37. Bf6 {[%clk 0:00:16]} 1-0


[Site "https://www.chess.com"]